Cogmind - Beta 16 @@@ ROGUE MODE // 2025.11.13 @ 15:21:06 Player: Zane Result: Destroyed by TD-S0Z(R) with Subdweller Machine Gun Performance ------------- Evolutions (0) 0 Regions Visited (2) 400 Robots Destroyed (16) 80 Value Destroyed (247) 247 Prototype IDs (4) 80 Alien Tech Used (0) 0 Bonus (0) 0 TOTAL SCORE: 807 Bonus ------- None Cogmind --------- Core Integrity 0/250 Matter 111/300 Energy 220/250 System Corruption 0% Temperature Cool (0) Movement Treading (160) Location -10/Subcaves Parts ------- > --- POWER (1) -------- Ion Engine > --- PROPULSION (2) --- Light Treads Light Treads > --- UTILITY (2) ------ Large Storage Unit Core Shielding > --- WEAPON (2) ------- Light Assault Rifle Battle Rifle > --- INVENTORY (15) --- Aluminum Leg Aluminum Leg Terrain Scanner Seismic Detector Targeting Computer Targeting Computer ECM Suite EM Pulse Gun Medium Laser Light Assault Rifle Peak State ------------ > --- POWER ------------ Ion Engine > --- PROPULSION ------- Light Treads Light Treads > --- UTILITY ---------- Large Storage Unit Seismic Detector > --- WEAPON ----------- Light Assault Rifle Battle Rifle > --- INVENTORY -------- Ion Engine Ion Engine Light Treads Light Treads Light Treads Aluminum Leg Aluminum Leg Terrain Scanner Targeting Computer Targeting Computer ECM Suite Core Shielding EM Pulse Gun Medium Laser Light Assault Rifle [Rating: 9] Favorites ----------- Power Ion Engine Engine Ion Engine Propulsion Light Treads Treads Light Treads Utility Seismic Detector Device Seismic Detector Storage Large Storage Unit Protection Core Shielding Weapon Light Assault Rifle Energy Gun Medium Laser Ballistic Gun Light Assault Rifle Build | -11 -10 -10 ------- Run | Yrd Mat Sub Slots Evolved . | . . . Power . | . . . Propulsion . | . . . Utility . | . . . Weapon . | . . . Parts Attached 18 | 7 5 6 Power 3 | 1 1 1 Engine 3 | 1 1 1 Core . | . . . Reactor . | . . . Propulsion 6 | 2 1 3 Treads 6 | 2 1 3 Leg . | . . . Wheel . | . . . Hover . | . . . Flight . | . . . Utility 5 | 2 2 1 Device 2 | 1 1 . Storage 2 | 1 1 . Processor . | . . . Hackware . | . . . Protection 1 | . . 1 Artifact . | . . . Weapon 4 | 2 1 1 Energy Gun 1 | 1 . . Energy Cannon . | . . . Ballistic Gun 3 | 1 1 1 Ballistic Cannon . | . . . Launcher . | . . . Special Weapon . | . . . Impact Weapon . | . . . Slashing Weapon . | . . . Piercing Weapon . | . . . Special Melee Weapon . | . . . Unidentified Prototypes . | . . . Parts Lost 5 | . . 5 Power 2 | . . 2 Propulsion 3 | . . 3 Utility . | . . . Weapon . | . . . Highest Loss Streak 3 | . . 3 To Critical Strikes 1 | . . 1 Average Backups 11 | 3 10 14 Power 1 | . 1 1 Propulsion 4 | 1 3 4 Utility 3 | . 3 5 Weapon 2 | . 1 2 Tool/Special . | . . . Unused Backups 7 | . . 7 Power . | . . . Propulsion 2 | . . 2 Utility 3 | . . 3 Weapon 2 | . . 2 Tool/Special . | . . . Average Slot Usage (%) 99 | . 100 99 Engine 13 | . 14 13 Treads 28 | . 28 28 Device 13 | . 14 13 Storage 14 | . 14 14 Ballistic Gun 27 | . 27 28 Peak Build Rating 9 | 7 8 9 Average Rating 7 | 5 7 8 On Entrance 5 | . 7 8 Avg Prop Armor Cover (%) . | . . . Naked Turns . | . . . Heaviest Build 30 | 14 30 29 Greatest Support 40 | 40 40 40 Greatest Overweight (x) . | . . . Average Overweight (x) . | . . . Largest Inventory Capacity 15 | 8 15 15 Average Capacity 13 | 7 13 15 Most Carried 15 | 4 15 15 Average Carried 11 | 3 10 14 Final Capacity 15 | 8 15 15 Final Carried 15 | 4 15 10 Class Distribution -------------------- 100% | Mutant Dominant Class ---------------- Mutant | -10/Materials Mutant | -10/Subcaves Resources | -11 -10 -10 ----------- Run | Yrd Mat Sub Matter Collected 495 | 281 124 90 Remotely . | . . . Salvage Created 439 | 98 271 70 Parts 19 | 3 9 7 Haulers Intercepted 1 | . 1 . Recyclers Shooed . | . . . Parts Field Recycled . | . . . Retrieved Matter . | . . . Parts Self-Destructed 4 | . . 4 Prevented . | . . . Parts Restored . | . . . Kills | -11 -10 -10 ------- Run | Yrd Mat Sub Combat Hostiles Destroyed 13 | . 9 4 Guns 13 | . 9 4 Classes Destroyed 6 | 2 3 1 Tunneler 1 | 1 . . Hauler 1 | . 1 . Recycler 1 | 1 . . Swarmer 9 | . 6 3 Grunt 3 | . 3 . Subdweller 1 | . . 1 Best Kill Streak 3 | 1 3 3 Combat Bots Only 3 | . 3 3 Max Kills in Single Turn 1 | 1 1 1 Gunslinging . | . . . Exploded . | . . . Melee . | . . . Uniques/NPCs Destroyed . | . . . Combat | -11 -10 -10 -------- Run | Yrd Mat Sub Hostile Shots Fired 107 | . 53 54 Missed 28 | . 13 15 Hits 79 | . 40 39 Projectile 79 | . 40 39 AOE 4 | . . 4 Critical Strikes 1 | . . 1 Damage Taken 1176 | . 358 818 Core 257 | . 51 206 Absorbed by Shields . | . . . Redirected to Shielding 10 | . . 10 Core Remaining (%) 100 | 100 . . Volleys Fired 92 | 11 44 37 Largest 2 | 2 2 2 Hottest 70 | 70 40 45 Shots Fired 158 | 22 88 48 Gun 158 | 22 88 48 Cannon . | . . . Launcher . | . . . Special . | . . . Kinetic 147 | 11 88 48 Thermal 11 | 11 . . Explosive . | . . . Electromagnetic . | . . . Robot Hit Streak 13 | 9 10 13 Robot Miss Streak 5 | 2 5 3 Penetration Max . | . . . Secondary Targets 2 | . 1 1 Max Gunslinging Chain 1 | . 1 1 Shots Hit Robots 100 | 15 54 31 Core Hits 31 | 4 18 9 Critical Kills . | . . . Critical Parts Destroyed . | . . . Critical Strikes 2 | 1 . 1 Burn 1 | 1 . . Destroy 1 | . . 1 Melee Attacks . | . . . Impact . | . . . Slashing . | . . . Piercing . | . . . Sneak Attacks . | . . . Combat Hostiles . | . . . Follow-up Attacks . | . . . Damage Inflicted 1182 | 164 602 416 Guns 1176 | 164 596 416 Cannons . | . . . Explosions . | . . . Melee . | . . . Ramming 6 | . 6 . Kinetic 1076 | 64 596 416 Thermal 100 | 100 . . Explosive . | . . . Electromagnetic . | . . . Impact . | . . . Slashing . | . . . Piercing . | . . . Highest Corruption . | . . . Average Corruption . | . . . Corruption Purged . | . . . Corruption Blocked . | . . . Overload Shots . | . . . Overflow Damage . | . . . Projectiles . | . . . Explosions . | . . . Melee . | . . . Knockbacks 1 | . 1 . Impact 1 | . 1 . Kinetic . | . . . Secondary . | . . . Self-Inflicted Damage . | . . . Shots . | . . . Rammed 3 | . 3 . Targets Rammed 3 | . 3 . Kicked . | . . . Crushed . | . . . Highest Temperature 170 | 170 12 . Average Temperature 70 | 94 6 . Received Heat Transfer 156 | . 90 66 Siege Activations . | . . . Martial Activations . | . . . Shielding Activations . | . . . Robots Disrupted . | . . . Combat Hostiles . | . . . Robots Corrupted . | . . . Combat Hostiles . | . . . Parts Fried . | . . . Impact Corruptions . | . . . Robots Melted . | . . . Combat Hostiles . | . . . Parts Melted 1 | 1 . . Heat Transferred 370 | 370 . . Parts Sabotaged . | . . . Parts Stolen . | . . . Parts Stripped . | . . . Power Chain Reactions . | . . . Alert | -11 -10 -10 ------- Run | Yrd Mat Sub Maximum Alert Level . | . . . Low Security (%) 100 | 100 100 . Level 1 . | . . . Level 2 . | . . . Level 3 . | . . . Level 4 . | . . . Level 5 . | . . . High Security . | . . . Max Security . | . . . Peak Influence 92 | 5 92 . Initial . | . . . Average 25 | . 30 . Influence Increases 356 | 10 276 70 Destroy 0b10 Robot/C 240 | . 180 60 Destroy 0b10 Robot/NC 15 | 10 5 . Destroy Leader 42 | . 32 10 Successful Hack 29 | . 29 . Lose Combat Pursuer 30 | . 30 . Influence Decreases 356 | 10 241 105 Entered New Map 18 | . . 18 Time Decay 338 | 10 241 87 Squads Dispatched 1 | . 1 . Investigation . | . . . Extermination . | . . . Reinforcement 1 | . 1 . Assault . | . . . Garrison . | . . . Intercept . | . . . Searches Triggered . | . . . Construction Impeded . | . . . Haulers Reinforced . | . . . Active Scanning Responses . | . . . Cargo Convoy Interrupts . | . . . Stealth | -11 -10 -10 --------- Run | Yrd Mat Sub Distress Signals 2 | . 2 . Communications Jammed . | . . . Distress Signals . | . . . Times Spotted 25 | . 18 7 Peak Tracking Total 4 | . 4 3 Tactical Retreats 2 | . 2 . ECM-based Alert Blocks 1 | . 1 . Traps | -11 -10 -10 ------- Run | Yrd Mat Sub Traps Triggered . | . . . Indirectly . | . . . Trap Hack Attempts . | . . . Triggered . | . . . Disarmed . | . . . Reprogrammed . | . . . Reused . | . . . Traps Extracted . | . . . Installed . | . . . Triggered . | . . . Machines | -11 -10 -10 ---------- Run | Yrd Mat Sub Machines Disabled . | . . . Max in Single Turn . | . . . Machines Repaired . | . . . Machines Dismantled . | . . . Machines Sabotaged . | . . . Overloaded Fab Kills . | . . . Hacking | -11 -10 -10 --------- Run | Yrd Mat Sub Machines Accessed 4 | . 4 . Terminals 4 | . 4 . Fabricators . | . . . Repair Stations . | . . . Recycling Units . | . . . Scanalyzers . | . . . Garrison Access . | . . . Total Hacks 14 | . 14 . Successful 10 | . 10 . Failed 4 | . 4 . Catastrophic . | . . . Database Lockouts . | . . . Manual 9 | . 9 . Terminals 14 | . 14 . Fabricators . | . . . Repair Stations . | . . . Recycling Units . | . . . Scanalyzers . | . . . Garrison Access . | . . . Terminal Hacks 7 | . 7 . Robot Analysis 1 | . 1 . Prototype ID Bank 2 | . 2 . Branch Access Points 1 | . 1 . Locate Traps 2 | . 2 . Zone Layout 1 | . 1 . Fabricator Hacks . | . . . Repair Station Hacks . | . . . Recycling Unit Hacks . | . . . Scanalyzer . | . . . Garrison Access Hacks . | . . . Unauthorized Hacks 3 | . 3 . Terminals 3 | . 3 . Botnet 3 | . 3 . Fabricators . | . . . Repair Stations . | . . . Recycling Units . | . . . Scanalyzers . | . . . Garrison Access . | . . . Data Cores Recovered . | . . . Used . | . . . Hacking Detections 4 | . 4 . Full Trace Events . | . . . Feedback Events . | . . . Feedback Blocked . | . . . Robot Schematics Acquired . | . . . Robots Built . | . . . Authchips . | . . . Time . | . . . Total Robot Build Rating . | . . . Part Schematics Acquired . | . . . Parts Built . | . . . Authchips . | . . . Time . | . . . Total Part Build Rating . | . . . Part Studies Acquired . | . . . Parts Repaired . | . . . Time . | . . . Parts Recycled . | . . . Recycled Matter . | . . . Retrieved Matter . | . . . Retrieved Components . | . . . Parts Scanalyzed . | . . . Part Schematics Acquired . | . . . Parts Damaged . | . . . Bothacking | -11 -10 -10 ------------ Run | Yrd Mat Sub Used RIF Installer . | . . . Robots Hacked . | . . . Non-combat . | . . . Combat . | . . . Robot Hacks Applied . | . . . Relay Couplers Released . | . . . Fabnet Peak Effective % . | . . . Robots Rewired . | . . . Allies Hacked . | . . . Hacks Repelled . | . . . Allies | -11 -10 -10 -------- Run | Yrd Mat Sub Total Allies . | . . . Largest Group . | . . . Highest-Rated Group . | . . . Highest-Rated Ally . | . . . Total Orders . | . . . Ally Attacks . | . . . Total Damage . | . . . Kills . | . . . Allies Corrupted . | . . . Allies Melted . | . . . Intel | -11 -10 -10 ------- Run | Yrd Mat Sub Active Infowar (turns) 1562 | 21 730 811 Seismic 1513 | 21 681 811 ECM 49 | . 49 . Robot Analysis Total 1 | . 1 . Derelict Logs Recovered 1 | . . 1 Drone Launches . | . . . Drone Recoveries . | . . . Exploration | -11 -10 -10 ------------- Run | Yrd Mat Sub Turns Passed 1684 | 121 730 833 Spaces Moved 850 | 50 346 454 Core 4 | 4 . . Treads 846 | 46 346 454 Legs . | . . . Wheels . | . . . Hover . | . . . Flight . | . . . Fastest Speed 50 | 50 160 160 Average Speed 159 | 151 160 160 Slowest Speed 160 | 160 160 160 Overloaded Moves . | . . . Propulsion Burnouts . | . . . Robots Hopped . | . . . Potential Cave-ins . | . . . Cave-ins Triggered . | . . . Exploration Rate (%) 27 | 4 55 24 Regions Visited 2 Branch Regions 1 Pre-discovered Areas . | . . . Known Exits Taken . | . . . Unknown Exits Taken 2 | 1 1 . Scrap Searched . | . . . Spaces Dug . | . . . Terrain Destroyed . | . . . Melee . | . . . Projectile . | . . . AOE . | . . . Terrain Rammed . | . . . Walls Destroyed . | . . . Machines Disabled . | . . . Actions | -11 -10 -10 --------- Run | Yrd Mat Sub Total 1030 | 72 439 519 Wait 50 | 1 31 18 Move 848 | 49 345 454 Hop . | . . . Pick Up 13 | 4 8 1 Fast Attach 7 | 7 . . Attach 5 | . . 5 Detach . | . . . Swap 9 | . 7 2 Drop 3 | . 1 2 Fire 92 | 11 44 37 Melee . | . . . Ram . | . . . Kick . | . . . Crush 3 | . 3 . Escape Stasis . | . . . Rewire . | . . . Trap . | . . . Miscellaneous . | . . . Route ------- -11/Scrapyard -10/Materials (discovered 3 exits: [*Mat] / Min / [*Sub]) -10/Subcaves History --------- Turn | Location | Event 10 | -11/Scrapyard | Discovered new exit (range 15) 122 | -11/Scrapyard | Entered Materials 310 | -10/Materials | Build established: Mutant 541 | -10/Materials | Identified exit to Mines 704 | -10/Materials | Discovered new exit (range 3) 744 | -10/Materials | Discovered new exit (range 10) 852 | -10/Materials | Entered Subcaves 981 | -10/Subcaves | A swath of the cavern ceiling suddenly collapsed 1192 | -10/Subcaves | Shifting Twisted Machinery released Battle Rifle 1450 | -10/Subcaves | Ambushed by Subdweller buried in earth 1453 | -10/Subcaves | Core integrity fell below 50% 1497 | -10/Subcaves | Lost 3 parts (2p1n) 1632 | -10/Subcaves | Core integrity fell below 20% 1685 | -10/Subcaves | Destroyed by TD-S0Z(R) with Subdweller Machine Gun Last Messages --------------- destroying it. 00981_ Derelict Log crushed. A swath of the cavern ceiling suddenly collapses. 01143_ Acquired 18 matter. Battle Rifle falls loose from the Twisted Machinery. 01207_ Dropped Assault Rifle. 01213_ Subatomizers dissect the Assault Rifle. 01448_ Ion Engine destroyed. 01451_ JO-MEW(R): "NOSTUCKSUB!" 01452_ GF-S30(R) destroyed. 01458_ Lgt. Treads destroyed. 01466_ Ion Engine destroyed. 01477_ JO-MEW(R) destroyed. 01479_ Acquired 32 matter. 01484_ Acquired 2 matter. 01668_ TD-S0Z(R) suffers critical hit (Destroy). 01681_ Critical hit (Destroy). 01681_ Lgt. Treads destroyed. Map ----- +----------------------------------------------------+ | ?????????????????????????????????????????????????? | | ?????????????????????????????????????????????????? | | ?????????????????????????????????????????????????? | | ?????????????????????????????????????????????????? | | ?????????????????????????????????????????????????? | | ?????????????????????????????????????????????????? | | ?????????????????????????????????????????????????? | | ?????????????????????????????????????????????????? | | ?????????????????????????????????????????????????? | | ?????????????????????????????????## ?????????????? | | ????????????????????????????????## ?????????????? | | ???????????????????????????????## ""???????????? | | ??????????????????#????????????# ???????????# | | ?????????????????## ??????? ??# ??????????"# | | ?????????????? ### ??????? ## ????????? # | | ?????????????? ??????# ???????? #? | | ??????????????? ???????# ??###### #? | | ???????????????? ???????# ### #? | | ?????????????????# ?????????# #?? | | ?????????????????? ?????????# #??? | | ??????????????????? ?????????# #????? | | ???????????????????? ????????# ##????? | | ?????????????????????# #???????# ###?????? | | ????????????????????## ##?????# #???????? | | ???????????????????## #?????## ## #???????? | | ???????????????????# @##?????##?## ##??????? | | ???????????????????# #??????### ##?####? | | ???????????????????# ###????# ### ## | | ???????????? #????# # | | ??????????? ##RR #????# | | ???????????? ?# ###### | | ???????????? ## ?## ## # | | ???????????? #?# ???### #### ## # | | ????????????? #??# ?????## ##?##### # | | ????????????? ##???##??????## ####??## # | | ??????????????#????????????#### ##### # | | ???????????????????????????# ## # | | ??????????????????????????# ##### # | | ??????????????????????????## ###??## | | ???????????????????????????# ##??? | | ???????????????????????????#### ## #??? | | ??????????????????????????????## ##### # #??? | | ???????????????????????????????# ???# ## ###??? | | ??????????????????????????????# ???# # #???? | | ??????????????????????????????## #???# #???? | | ??????????????????????????????# ???# # ##???? | | ??????????????????????????????# ###?# #????? | | ??????????????????????????????## ## # ##????? | | ??????????????????????????????# ##?????? | | ???????????????????????????????# ###????? | +----------------------------------------------------+ Best States ------------- Heat Dissipation 25 Energy Generation 10 Energy Capacity 250 Matter Stores 300 Matter Capacity 300 Sight Range 16 Terrain Scan Density 10 ECM Strength 1 Core Shielding 20 Evasion (%) 40 Recoil Reduction 2 Item Schematics ----------------- None Robot Schematics ------------------ None Fabricated ------------ Nothing Repaired ---------- Nothing Studied --------- None Alien Tech Used ----------------- None Achievements -------------- None Challenges ------------ None Game ------ Seed SpectralEnhancedDesublimator Manual? 0 Play Time 00:11:52 Cumulative 47.7 hours Start 2025.11.13 @ 15:09:39 End 2025.11.13 @ 15:21:06 Sessions 1 Manual Loads 0 Difficulty Rogue Special Mode None Game No. 64 Rogue 64 Adventurer 0 Explorer 0 Win Type - Total 0 Types 0/0/0/0/0/0/0/0/0/0 Lore% 46 Gallery% 37 Achievement% 24 Wizard Run 0 Options --------- Layout 1 ASCII 0 Keyboard 0 Movement Numpad Keybinds 0 Fullscreen 2 Font 24/Smallcaps Map View 50x35 Zoom Use 0% Tactical HUD 1 Map Filters NONE Filters NONE Steam 1 RUN: acd4a247-deb2-4802-90e7-5eb6569fdb67